bitfinex/quotes_BTCUSD_20250205
["timestamp","ask_amount","ask_price","bid_price","bid_amount"]
[1738781102703,0.00022428,96986.0,96985.0,0.15569391]
[1738781103103,0.00022428,96986.0,96985.0,0.154663]
[1738781103643,0.00022428,96986.0,96985.0,0.15569391]
[1738781103849,0.00022428,96986.0,96985.0,0.154663]
[1738781104203,0.00022428,96986.0,96985.0,0.15569391]
[1738781105639,0.00022428,96986.0,96973.0,0.15]
[1738781105838,0.00022428,96986.0,96982.0,0.154666]
[1738781106043,0.00022428,96986.0,96971.0,0.15]
[1738781106244,0.00022428,96986.0,96981.0,0.154669]
[1738781106506,0.00022428,96986.0,96985.0,0.0001068]
[1738781107490,0.00022428,96986.0,96985.0,0.1547698]
[1738781107894,0.00022428,96986.0,96985.0,0.0001068]
[1738781108939,0.00022428,96986.0,96985.0,0.1547698]
[1738781109674,0.00022428,96986.0,96985.0,0.0001068]
[1738781110065,0.32277636,96986.0,96985.0,0.0001068]
[1738781110269,0.57197636,96986.0,96985.0,0.0001068]
[1738781110699,0.582454,96986.0,96985.0,0.0001068]
[1738781111121,0.304996,96964.0,96962.0,0.0001069]
[1738781111329,0.41629965,96964.0,96962.0,0.0001069]
[1738781113467,0.57654173,96964.0,96962.0,0.0001069]
[1738781113646,0.6754471,96964.0,96962.0,0.0001069]
[1738781114361,0.68785239,96964.0,96962.0,0.0001069]
[1738781114566,2.18785239,96964.0,96962.0,0.0001069]
[1738781116377,0.68785239,96964.0,96962.0,0.0001069]
[1738781117158,0.67905239,96964.0,96962.0,0.0001069]
[1738781117315,0.68785239,96964.0,96962.0,0.0001069]
[1738781117516,0.58894702,96964.0,96962.0,0.0001069]
[1738781118323,0.40714702,96964.0,96962.0,0.0001069]
[1738781118536,0.12370894,96964.0,96962.0,0.0001069]
[1738781118737,0.14763136,96964.0,96962.0,0.0001069]
[1738781119787,0.29670894,96964.0,96962.0,0.0001069]
[1738781119985,1.95817254,96964.0,96962.0,0.0001069]
[1738781120933,0.30817254,96964.0,96962.0,0.0001069]
[1738781121697,0.46286854,96964.0,96962.0,0.0001069]
[1738781122557,2.00786854,96964.0,96962.0,0.0001069]
[1738781122987,0.50786854,96964.0,96962.0,0.0001069]
[1738781123193,0.52023964,96964.0,96962.0,0.0001069]
[1738781124314,0.5400334,96964.0,96962.0,0.0001069]
[1738781125759,0.52023964,96964.0,96962.0,0.0001069]
[1738781126161,0.67023964,96964.0,96962.0,0.0001069]
[1738781126361,0.73214964,96964.0,96962.0,0.0001069]
[1738781126779,2.23214964,96964.0,96962.0,0.0001069]
[1738781127882,2.23214964,96964.0,96951.0,0.0001069]
[1738781127883,0.432415,96952.0,96951.0,0.0001069]
[1738781128084,0.55791865,96952.0,96951.0,0.0001069]
[1738781128928,0.55791865,96952.0,96946.0,1e-08]
[1738781128929,0.452223,96947.0,96946.0,1e-08]
[1738781129130,0.55472665,96947.0,96946.0,1e-08]
[1738781131102,0.57589775,96947.0,96946.0,1e-08]
[1738781131346,0.6784014,96947.0,96946.0,1e-08]
[1738781132050,0.6784014,96947.0,96904.0,0.0001068]
[1738781132051,0.154763,96922.0,96904.0,0.0001068]
[1738781132261,0.36316665,96922.0,96904.0,0.0001068]
[1738781132502,0.154779,96912.0,96904.0,0.0001068]
[1738781132762,0.15479,96906.0,96904.0,0.0001068]
[1738781133159,0.10250365,96905.0,96904.0,0.0001068]
[1738781133359,0.10342607,96905.0,96904.0,0.0001068]
[1738781134105,0.27527354,96905.0,96904.0,0.0001068]
[1738781134327,0.32267354,96905.0,96904.0,0.0001068]
[1738781135607,0.33499595,96905.0,96904.0,0.0001068]
[1738781135978,1.83499595,96905.0,96904.0,0.0001068]
[1738781136224,0.33499595,96905.0,96904.0,0.0001068]
[1738781136424,0.34379595,96905.0,96904.0,0.0001068]
[1738781136750,0.3635118,96905.0,96904.0,0.0001068]
[1738781136978,0.5183018,96905.0,96904.0,0.0001068]
[1738781138303,0.49858595,96905.0,96904.0,0.0001068]
[1738781138745,0.50865875,96905.0,96904.0,0.0001068]
[1738781139980,0.5283746,96905.0,96904.0,0.0001068]
[1738781141339,0.54809754,96905.0,96904.0,0.0001068]
[1738781142994,0.5283746,96905.0,96904.0,0.0001068]
[1738781143966,0.5195746,96905.0,96904.0,0.0001068]
[1738781144166,0.54127186,96905.0,96904.0,0.0001068]
[1738781145602,0.31230197,96905.0,96904.0,0.0001068]
[1738781145811,0.05500832,96905.0,96904.0,0.0001068]
[1738781146258,0.20979832,96905.0,96904.0,0.0001068]
[1738781146464,0.33530197,96905.0,96904.0,0.0001068]
[1738781146721,0.41040197,96905.0,96904.0,0.0001068]
[1738781147084,0.49359867,96905.0,96904.0,0.0001068]
[1738781147327,0.48070141,96905.0,96904.0,0.0001068]
[1738781147573,0.54261141,96905.0,96904.0,0.0001068]
[1738781148285,2.04261141,96905.0,96904.0,0.0001068]
[1738781148556,1.82240471,96905.0,96904.0,0.0001068]
[1738781150174,1.83120471,96905.0,96904.0,0.0001068]
[1738781150566,0.33120471,96905.0,96904.0,0.0001068]
[1738781150774,0.15751152,96905.0,96904.0,0.0001068]
[1738781150972,0.05373507,96905.0,96904.0,0.0001068]
[1738781151210,0.20852507,96905.0,96904.0,0.0001068]
[1738781151422,0.05373507,96905.0,96904.0,0.0001068]
[1738781151555,0.04493507,96905.0,96904.0,0.0001068]
[1738781152299,0.03203826,96905.0,96904.0,0.0001068]
[1738781153407,0.02520152,96905.0,96904.0,0.0001068]
[1738781153976,0.02520152,96905.0,96904.0,0.0017068]
[1738781154419,0.17999152,96905.0,96904.0,0.0017068]
[1738781155708,0.28341759,96905.0,96904.0,0.0017068]
[1738781155876,0.28249517,96905.0,96904.0,0.0017068]
[1738781156278,0.37804329,96905.0,96904.0,0.0017068]
[1738781156681,0.397792,96905.0,96904.0,0.0017068]
[1738781157014,1.897792,96905.0,96904.0,0.0017068]
[1738781158202,1.87804329,96905.0,96904.0,0.0017068]
[1738781158637,2.16825329,96905.0,96904.0,0.0017068]
[1738781160372,0.154816,96889.0,96888.0,0.0001071]
[1738781160571,0.28031965,96889.0,96888.0,0.0001071]
[1738781160803,0.25731965,96889.0,96888.0,0.0001071]
[1738781161776,0.11130365,96889.0,96888.0,0.0001071]
[1738781161975,0.01971585,96889.0,96888.0,0.0001071]
[1738781162550,0.17453185,96889.0,96888.0,0.0001071]
[1738781162762,0.2770355,96889.0,96888.0,0.0001071]
[1738781163597,0.33522017,96889.0,96888.0,0.0001071]
[1738781164607,0.2858355,96889.0,96888.0,0.0001071]
[1738781165160,0.5207455,96889.0,96888.0,0.0001071]
[1738781165834,2.0207455,96889.0,96888.0,0.0001071]
[1738781166165,2.03303029,96889.0,96888.0,0.0001071]
[1738781167916,2.03303029,96889.0,96856.0,0.08199704]
[1738781167917,0.15,96877.0,96856.0,0.08199704]
[1738781168114,0.154867,96857.0,96856.0,0.08199704]
[1738781168315,0.25737065,96857.0,96856.0,0.08199704]
[1738781168511,0.15487,96855.0,96846.0,0.08199704]
[1738781168778,0.25829607,96855.0,96840.0,0.01]
[1738781168975,0.25737365,96855.0,96840.0,0.01]
[1738781169229,0.34505682,96855.0,96840.0,0.01]
[1738781169396,0.40956945,96855.0,96840.0,0.01]
[1738781169964,0.40956945,96855.0,96837.0,0.154899]
[1738781170143,0.40956945,96855.0,96838.0,0.01]
[1738781170355,0.40956945,96855.0,96840.0,0.01]
[1738781170589,0.3899605,96855.0,96840.0,0.01]
[1738781170790,0.3899605,96855.0,96838.0,0.164896]
[1738781171048,0.3899605,96855.0,96840.0,0.01]
[1738781171833,0.04490368,96855.0,96841.0,0.00103252]
[1738781171992,0.04490368,96855.0,96846.0,0.154884]
[1738781172209,0.04490368,96855.0,96844.0,0.154887]
[1738781173117,0.04490368,96855.0,96841.0,0.00103252]
[1738781173326,0.14832975,96855.0,96840.0,0.01]
[1738781173975,0.32132975,96855.0,96825.0,0.0768]
[1738781174242,0.32040733,96855.0,96824.0,0.01]
[1738781174752,0.27550365,96855.0,96830.0,0.01]
[1738781174880,0.36660143,96855.0,96825.0,0.00103266]
[1738781175085,0.32902826,96855.0,96833.0,0.01]
[1738781175286,0.32902826,96855.0,96834.0,0.01]
[1738781175492,1.82902826,96855.0,96825.0,0.01]
[1738781175750,1.82902826,96855.0,96828.0,0.01]
[1738781175942,1.82902826,96855.0,96830.0,0.01]
[1738781176154,1.82902826,96855.0,96831.0,0.01103261]
[1738781176354,1.82902826,96855.0,96832.0,0.01]
[1738781176583,0.32902826,96855.0,96834.0,0.01]
[1738781177141,1.82902826,96855.0,96834.0,0.01]
[1738781177460,0.32902826,96855.0,96834.0,0.01]
[1738781177691,0.42459851,96855.0,96834.0,0.01]
[1738781178028,0.42459851,96855.0,96835.0,0.01]
[1738781178830,0.50629851,96855.0,96829.0,0.00103258]
[1738781179033,0.50629851,96855.0,96823.0,0.00659119]
[1738781179034,0.15492,96824.0,96823.0,0.00659119]
[1738781179215,0.25834607,96824.0,96823.0,0.00659119]
[1738781179412,0.26622365,96824.0,96823.0,0.00659119]
[1738781180463,0.28922365,96824.0,96823.0,0.00659119]
[1738781180715,0.52445692,96824.0,96823.0,0.00659119]
[1738781181213,0.58868661,96824.0,96823.0,0.00659119]
[1738781181627,0.58868661,96824.0,96807.0,0.0001069]
[1738781181628,0.304945,96808.0,96807.0,0.0001069]
[1738781181835,0.304971,96792.0,96768.0,0.08199704]
[1738781182039,0.40747465,96792.0,96768.0,0.08199704]
[1738781182474,1.90747465,96792.0,96765.0,0.01]
[1738781182681,1.95219926,96792.0,96766.0,0.01]
[1738781182908,1.9623066,96792.0,96766.0,0.01]
[1738781183113,2.09661025,96792.0,96766.0,0.01]
[1738781184592,2.09661025,96792.0,96791.0,0.00833872]
[1738781185334,2.17461025,96792.0,96791.0,0.00833872]
[1738781185550,2.21401025,96792.0,96791.0,0.00833872]
[1738781185754,0.72281025,96792.0,96791.0,0.00833872]
[1738781186165,0.59661025,96792.0,96791.0,0.00833872]
[1738781187050,0.30219926,96792.0,96791.0,0.00833872]
[1738781187275,0.14722826,96792.0,96791.0,0.00833872]
[1738781187559,0.04472461,96792.0,96791.0,0.17331172]
[1738781187762,0.04472461,96792.0,96791.0,0.17434481]
[1738781187910,0.04472461,96792.0,96791.0,0.25451172]
[1738781188116,0.01223841,96792.0,96791.0,0.25451172]
[1738781188539,0.01223841,96792.0,96791.0,0.35701537]
[1738781188740,0.01223841,96792.0,96791.0,0.36701537]
[1738781188946,0.01223841,96792.0,96791.0,0.51701537]
[1738781189146,0.09087998,96813.0,96812.0,0.164939]
[1738781189366,0.09087998,96813.0,96812.0,0.01]
[1738781189618,0.009088,96813.0,96807.0,0.01]
[1738781189830,0.10250365,96813.0,96810.0,0.01]
[1738781189951,0.206565,96822.0,96811.0,0.01]
[1738781190150,0.10342607,96821.0,96810.0,0.01]
[1738781190350,0.10342607,96821.0,96809.0,0.01]
[1738781190351,0.154944,96810.0,96809.0,0.01]
[1738781190593,0.154944,96810.0,96795.0,0.20662]
[1738781190594,0.154945,96808.0,96807.0,0.01]
[1738781191321,0.15495,96805.0,96804.0,0.01]
[1738781191575,0.25745365,96805.0,96804.0,0.01]
[1738781192252,0.28927352,96805.0,96804.0,0.01]
[1738781193221,0.03181987,96805.0,96804.0,0.01]
[1738781194373,0.03181987,96805.0,96804.0,0.01103292]
[1738781194665,0.03181987,96805.0,96804.0,0.01]
[1738781195149,0.01223841,96805.0,96804.0,0.01]
[1738781195696,0.11474206,96805.0,96792.0,0.01]
[1738781195882,0.154963,96797.0,96792.0,0.01]
[1738781196131,0.10342607,96796.0,96780.0,0.01]
[1738781196354,0.154969,96793.0,96785.0,0.01]
[1738781196584,0.10250365,96792.0,96789.0,0.01]
[1738781196817,0.25747465,96792.0,96789.0,0.01]
[1738781197280,0.25747465,96792.0,96783.0,0.01]
[1738781197536,0.34520832,96792.0,96781.0,0.01]
[1738781197775,0.38981026,96792.0,96785.0,0.01]
[1738781198936,0.30207659,96792.0,96785.0,0.01]
[1738781199963,0.30207659,96792.0,96783.0,0.01]
[1738781200377,0.30207659,96792.0,96781.0,0.01]
[1738781201079,0.30207659,96792.0,96782.0,0.01]
[1738781201300,0.30207659,96792.0,96781.0,0.01]
[1738781201487,0.30207659,96792.0,96783.0,0.01]
[1738781203995,0.30207659,96792.0,96784.0,0.01]
[1738781204570,0.04460194,96792.0,96785.0,0.154981]
[1738781204778,0.04460194,96792.0,96791.0,0.16331172]
[1738781205180,0.04460194,96792.0,96791.0,0.17331172]
[1738781205974,0.01223841,96792.0,96791.0,0.17331172]
[1738781206170,0.01223841,96792.0,96791.0,0.01833872]
[1738781206959,0.01223841,96792.0,96791.0,0.17331172]
[1738781208104,0.01223841,96792.0,96791.0,0.01833872]
[1738781208686,0.03176671,96792.0,96791.0,0.00833872]
[1738781208888,0.18673771,96792.0,96791.0,0.00833872]
[1738781209128,0.28924136,96792.0,96791.0,0.00833872]
[1738781210447,0.30215139,96792.0,96791.0,0.00833872]
[1738781211186,0.31248777,96792.0,96791.0,0.00833872]
[1738781212107,0.31271248,96792.0,96791.0,0.00833872]
[1738781213154,0.29980245,96792.0,96791.0,0.00833872]
[1738781216077,0.30860245,96792.0,96791.0,0.00833872]
[1738781216426,0.4062491,96792.0,96791.0,0.00833872]
[1738781216656,0.14445507,96792.0,96791.0,0.00833872]
[1738781217201,0.29942607,96792.0,96791.0,0.00833872]
[1738781219933,0.31233691,96792.0,96791.0,0.00833872]
[1738781220723,0.05486226,96792.0,96791.0,0.00833872]
[1738781220932,0.05486226,96792.0,96791.0,0.17434473]
[1738781221134,0.05486226,96792.0,96791.0,0.17331172]
[1738781221755,0.05486226,96792.0,96791.0,0.01833872]
[1738781221960,0.31233691,96792.0,96791.0,0.00833872]
[1738781222160,0.27989777,96792.0,96791.0,0.00833872]
[1738781223258,0.30289777,96792.0,96791.0,0.00833872]
[1738781223459,0.38960136,96792.0,96791.0,0.00833872]
[1738781223651,0.46940136,96792.0,96791.0,0.00833872]
[1738781223874,2.11940136,96792.0,96791.0,0.00833872]
[1738781224679,1.90205728,96792.0,96791.0,0.00833872]
[1738781224922,1.79925728,96792.0,96791.0,0.00833872]
[1738781225039,0.28869777,96792.0,96791.0,0.00833872]
[1738781225247,0.03122312,96792.0,96791.0,0.00833872]
[1738781225859,0.03122312,96792.0,96791.0,0.01833872]
[1738781225860,0.05080281,96792.0,96791.0,0.01833872]
[1738781226065,0.06371271,96792.0,96791.0,0.01833872]
[1738781226471,0.06371271,96792.0,96791.0,0.17331172]
[1738781226674,0.06371271,96792.0,96791.0,0.01833872]
[1738781226872,0.05491271,96792.0,96791.0,0.17331172]
[1738781227273,0.05491271,96792.0,96791.0,0.01833872]
[1738781227871,0.02242312,96792.0,96791.0,0.01833872]
[1738781228071,0.02242312,96792.0,96791.0,0.01937178]
[1738781228326,0.02242312,96792.0,96791.0,0.06497163]
[1738781228946,0.02242312,96792.0,96791.0,0.06393872]
[1738781229588,0.01018471,96792.0,96791.0,0.06393872]
[1738781231468,0.01018471,96792.0,96791.0,0.06497172]
[1738781231843,0.01018471,96792.0,96791.0,0.06393872]
[1738781232047,0.01018471,96792.0,96791.0,0.01833872]
[1738781232249,0.16515571,96792.0,96791.0,0.00833872]
[1738781232604,0.16515571,96792.0,96791.0,0.01833872]
[1738781232605,1.61268836,96792.0,96791.0,0.01833872]
[1738781232893,0.01018471,96792.0,96791.0,0.01833872]
[1738781233114,0.02242312,96792.0,96791.0,0.01833872]
[1738781233277,0.12492677,96792.0,96791.0,0.00833872]
[1738781233477,0.12584919,96792.0,96791.0,0.00833872]
[1738781233681,0.19525531,96792.0,96791.0,0.00833872]
[1738781234216,0.19433289,96792.0,96791.0,0.00833872]
[1738781234526,0.22682397,96792.0,96791.0,0.00833872]
[1738781234948,0.24982397,96792.0,96791.0,0.00833872]
[1738781235100,0.29782397,96792.0,96791.0,0.00833872]
[1738781235691,0.0549142,96792.0,96791.0,0.00833872]
[1738781235891,0.0549142,96792.0,96791.0,0.01833872]
[1738781238077,0.04200281,96792.0,96791.0,0.00833872]
[1738781238190,0.14542888,96792.0,96791.0,0.00833872]
[1738781238398,0.21784275,96792.0,96791.0,0.00833872]
[1738781238607,0.14450646,96792.0,96791.0,0.00833872]
[1738781238806,0.14450646,96792.0,96791.0,0.01833872]
[1738781239008,0.15834027,96792.0,96791.0,0.00833872]
[1738781240792,0.15741785,96792.0,96791.0,0.00833872]
[1738781242012,0.0549142,96792.0,96791.0,0.00833872]
[1738781242542,0.0549142,96792.0,96791.0,0.01833872]
[1738781243482,0.0549142,96792.0,96791.0,0.17331172]
[1738781243703,0.04200281,96792.0,96791.0,0.17331172]
[1738781244091,0.04200281,96792.0,96791.0,0.01833872]
[1738781244301,0.04200281,96792.0,96791.0,0.17331172]
[1738781245354,0.04200281,96792.0,96791.0,0.01833872]
[1738781245570,0.06308317,96792.0,96791.0,0.01833872]
[1738781245763,0.04200281,96792.0,96791.0,0.01833872]
[1738781247134,0.04200281,96792.0,96791.0,0.00833872]
[1738781247135,0.19697381,96792.0,96791.0,0.00833872]
[1738781247246,0.04200281,96792.0,96791.0,0.00833872]
[1738781247693,0.31238692,96792.0,96791.0,0.00833872]
[1738781248521,0.33538692,96792.0,96791.0,7.2e-07]
[1738781248691,0.33538692,96792.0,96760.0,0.025]
[1738781248692,0.1469,96778.0,96760.0,0.025]
[1738781248891,0.155019,96762.0,96760.0,0.025]
[1738781249121,0.34384507,96762.0,96760.0,0.025]
[1738781249416,1.94164456,96762.0,96760.0,0.025]
[1738781250303,1.84292265,96762.0,96760.0,0.025]
[1738781250637,1.91065021,96762.0,96760.0,0.025]
[1738781251092,1.88765021,96762.0,96760.0,0.025]
[1738781251279,2.03765021,96762.0,96760.0,0.025]
[1738781252446,2.03765021,96762.0,96700.0,0.0063]
[1738781252447,0.01,96737.0,96700.0,0.0063]
[1738781252621,0.366977,96732.0,96707.0,0.01]
[1738781252773,0.305067,96732.0,96710.0,0.0101069]
[1738781253122,1.805067,96732.0,96710.0,0.0101069]
[1738781253472,1.90757065,96732.0,96710.0,0.0101069]
[1738781253675,0.2743,96716.0,96710.0,0.0001069]
[1738781253899,0.2743,96716.0,96700.0,0.0063]
[1738781253900,0.305117,96701.0,96700.0,0.0063]
[1738781254185,0.305117,96701.0,96692.0,0.0017527]
[1738781254186,0.155126,96695.0,96692.0,0.0017527]
[1738781254389,1.75855207,96695.0,96694.0,0.008927]
[1738781254614,1.75762965,96695.0,96694.0,0.008927]
[1738781254971,1.8601333,96695.0,96694.0,0.008927]
[1738781255192,1.75762965,96695.0,96694.0,0.008927]
[1738781255397,0.28944775,96695.0,96694.0,0.008927]
[1738781255801,1.78944775,96695.0,96694.0,0.008927]
[1738781256837,0.28944775,96695.0,96694.0,0.031927]
[1738781257371,0.29824775,96695.0,96694.0,0.031927]
[1738781257568,0.34875563,96695.0,96694.0,0.031927]
[1738781258399,0.34875563,96695.0,96694.0,0.008927]
[1738781258400,0.47917594,96695.0,96694.0,0.008927]
[1738781258600,0.55537594,96695.0,96694.0,0.008927]
[1738781259206,0.5656539,96695.0,96694.0,0.008927]
[1738781260155,0.5568539,96695.0,96694.0,0.008927]
[1738781260331,0.43014602,96695.0,96694.0,0.008927]
[1738781260600,0.28902602,96695.0,96694.0,0.008927]
[1738781260780,0.12362206,96695.0,96694.0,0.008927]
[1738781261027,0.11474206,96695.0,96694.0,0.008927]
[1738781261199,0.01223841,96695.0,96694.0,0.008927]
[1738781261424,0.01223841,96695.0,96694.0,0.018927]
[1738781261601,0.00888,96713.0,96694.0,0.018927]
[1738781261602,0.00888,96713.0,96712.0,0.155099]
[1738781261773,0.11138365,96713.0,96712.0,0.165099]
[1738781261955,0.01957969,96719.0,96715.0,0.155093]
[1738781262147,0.10342607,96718.0,96695.0,0.01]
[1738781262343,0.10342607,96718.0,96703.0,0.01]
[1738781262344,0.02321326,96717.0,96703.0,0.01]
[1738781262567,0.155098,96713.0,96712.0,0.01]
[1738781262777,0.25852407,96713.0,96712.0,0.01]
[1738781262999,0.10250365,96713.0,96708.0,0.01]
[1738781263361,0.00896,96717.0,96699.0,0.01]
[1738781263362,0.1165304,96712.0,96699.0,0.01]
[1738781263564,0.155104,96709.0,96708.0,0.00882]
[1738781263710,0.25853007,96709.0,96708.0,0.00882]
[1738781263927,0.32482086,96709.0,96708.0,0.00882]
[1738781264745,0.33680739,96709.0,96708.0,0.00882]
[1738781267319,1.83680739,96709.0,96708.0,0.00882]
[1738781268312,1.83680739,96709.0,96708.0,0.00382]
[1738781268874,1.84735538,96709.0,96708.0,0.00382]
[1738781269759,1.78014217,96709.0,96708.0,0.00382]
[1738781269977,0.11449018,96709.0,96708.0,0.00382]
[1738781270246,0.14658854,96709.0,96708.0,0.00382]
[1738781271847,0.10342607,96709.0,96708.0,0.00382]
[1738781272590,0.10365098,96709.0,96708.0,0.00382]
[1738781272710,1.67088608,96709.0,96708.0,0.00382]
[1738781272906,1.66996366,96709.0,96708.0,0.00382]
[1738781273568,1.83705419,96709.0,96708.0,0.00382]
[1738781274207,0.26981909,96709.0,96708.0,0.00382]
[1738781276984,0.28899365,96709.0,96708.0,0.00382]
[1738781279702,0.13388965,96709.0,96708.0,0.00382]
[1738781280132,0.28899365,96709.0,96708.0,0.00382]
[1738781280709,0.13388965,96709.0,96708.0,0.00382]
[1738781281093,0.28899365,96709.0,96708.0,0.00382]
[1738781281522,0.3914973,96709.0,96708.0,0.00382]
[1738781282618,0.28899365,96709.0,96708.0,0.00382]
[1738781282753,0.26981909,96709.0,96708.0,0.00382]
[1738781283184,0.11471509,96709.0,96708.0,0.00382]
[1738781284172,0.10272856,96709.0,96708.0,0.00382]
[1738781284360,0.25783256,96709.0,96708.0,0.00382]
[1738781284804,0.36033621,96709.0,96708.0,0.00382]
[1738781285349,0.43843621,96709.0,96708.0,0.0039271]
[1738781285752,1.93843621,96709.0,96708.0,0.0039271]
[1738781285936,1.98573621,96709.0,96708.0,0.0039271]
[1738781286793,1.99788955,96709.0,96708.0,0.0039271]
[1738781288880,0.37248955,96709.0,96708.0,0.0039271]
[1738781289114,0.38144955,96709.0,96708.0,0.0039271]
[1738781289336,1.88144955,96709.0,96708.0,0.0039271]
[1738781289784,1.7789459,96709.0,96708.0,0.0039271]
[1738781290023,0.2789459,96709.0,96708.0,0.0039271]
[1738781291822,0.01,96682.0,96675.0,0.0966939]
[1738781292204,0.01,96680.0,96675.0,0.0966939]
[1738781292604,0.01,96685.0,96675.0,0.0966939]
[1738781292808,0.09085884,96724.0,96682.0,0.155147]
[1738781292809,0.01,96683.0,96682.0,0.155147]
[1738781293117,0.01,96682.0,96680.0,0.15515]
[1738781293387,0.005,96681.0,96680.0,0.005]
[1738781293716,0.005,96682.0,96680.0,0.005]
[1738781293910,0.005,96682.0,96680.0,0.21169379]
[1738781294155,0.005,96696.0,96692.0,0.15513]
[1738781294365,0.005,96696.0,96690.0,0.005]
[1738781294573,0.005,96694.0,96690.0,0.005]
[1738781294803,0.005,96690.0,96680.0,0.005]
[1738781295012,0.005,96700.0,96689.0,0.005]
[1738781295210,0.005,96699.0,96698.0,0.005]
[1738781295634,0.005,96699.0,96698.0,0.0210131]
[1738781295788,0.005,96699.0,96698.0,0.005]
[1738781296417,0.005,96698.0,96692.0,0.005]
[1738781296626,0.005,96698.0,96695.0,0.005]
[1738781296627,0.10250365,96697.0,96695.0,0.005]
[1738781296820,0.10157302,96697.0,96696.0,0.005]
[1738781297555,0.10157302,96697.0,96694.0,0.005]
[1738781297966,0.005,96695.0,96694.0,0.005]
[1738781298915,0.005,96694.0,96693.0,0.005]
[1738781299322,0.15604942,96695.0,96693.0,0.005]
[1738781299663,0.155137,96689.0,96684.0,0.005]
[1738781299988,0.155137,96689.0,96687.0,0.005]
[1738781299989,0.10250365,96688.0,96687.0,0.005]
[1738781302009,0.005,96693.0,96692.0,0.005]
[1738781302230,0.10750365,96693.0,96692.0,0.005]
[1738781302785,0.01016493,96701.0,96695.0,0.155126]
[1738781303008,0.00022491,96709.0,96702.0,0.206819]
[1738781303222,0.00022491,96709.0,96708.0,0.005]
[1738781303629,0.00022491,96709.0,96700.0,0.005]
[1738781303804,0.10250365,96708.0,96698.0,0.005]
[1738781304036,0.005,96700.0,96693.0,0.005]
[1738781304239,0.005,96696.0,96693.0,0.005]
[1738781304449,0.005,96695.0,96694.0,0.005]
[1738781305071,0.005,96693.0,96692.0,0.005]
[1738781305222,0.005,96693.0,96683.0,0.005]
[1738781305422,0.005,96693.0,96692.0,0.005]
[1738781305923,0.10842607,96693.0,96681.0,0.005]
[1738781306132,0.155146,96683.0,96673.0,0.005]
[1738781306332,0.10842607,96682.0,96676.0,0.005]
[1738781306512,0.005,96681.0,96680.0,0.005]
[1738781306713,0.005,96680.0,96679.0,0.005]
[1738781306920,0.10750365,96680.0,96671.0,0.0054]
[1738781307144,0.005,96678.0,96676.0,0.005]
[1738781307353,0.005,96678.0,96677.0,0.005]
[1738781308507,0.005,96677.0,96676.0,0.005]
[1738781309931,0.005,96686.0,96678.0,0.005]
[1738781310190,0.005,96681.0,96680.0,0.005]
[1738781310408,0.005,96680.0,96679.0,0.005]
[1738781311229,0.005,96683.0,96682.0,0.005]
[1738781311717,0.005,96694.0,96690.0,0.005]
[1738781311916,0.005,96688.0,96680.0,0.005]
[1738781312078,0.005,96684.0,96682.0,0.005]
[1738781312594,0.10250365,96683.0,96682.0,0.005]
[1738781312755,0.10250365,96683.0,96678.0,0.005]
[1738781312965,0.005,96680.0,96673.0,0.005]
[1738781313185,0.005,96676.0,96672.0,0.005]
[1738781313385,0.10250365,96675.0,96673.0,0.005]
[1738781314231,0.10250365,96675.0,96674.0,0.005]
[1738781314430,0.005,96676.0,96672.0,0.005]
[1738781314647,0.26266265,96675.0,96673.0,0.005]
[1738781314843,0.10750365,96675.0,96673.0,0.005]
[1738781315040,0.10750365,96675.0,96671.0,0.0004]
[1738781315041,0.005,96675.0,96674.0,0.005]
[1738781315216,0.005,96677.0,96676.0,0.005]
[1738781317288,0.005,96676.0,96675.0,0.005]
[1738781318150,0.005,96676.0,96675.0,0.0210568]
[1738781318499,0.005,96676.0,96675.0,0.005]
[1738781319731,0.005,96676.0,96675.0,0.0835]
[1738781319935,0.005,96687.0,96686.0,0.005]
[1738781320226,0.005,96686.0,96685.0,0.005]
[1738781320665,0.005,96695.0,96686.0,0.005]
[1738781320858,0.005,96697.0,96694.0,0.155128]
[1738781321070,0.005,96695.0,96691.0,0.155133]
[1738781321272,0.005,96693.0,96689.0,0.005]
[1738781321478,0.005,96693.0,96692.0,0.155131]
[1738781321681,0.005,96693.0,96690.0,0.155134]
[1738781321888,0.005,96690.0,96689.0,0.005]
[1738781322293,0.005,96679.0,96673.0,0.005]
[1738781322467,0.0002245,96699.0,96673.0,0.005]
[1738781322468,0.005,96675.0,96673.0,0.005]
[1738781322871,0.005,96673.0,96671.0,0.0054]
[1738781323062,0.005,96673.0,96672.0,0.005]
[1738781323650,0.005,96674.0,96673.0,0.005]
[1738781324920,0.005,96677.0,96673.0,0.005]
[1738781325118,0.005,96674.0,96673.0,0.005]
[1738781326603,0.005,96673.0,96672.0,0.005]
[1738781327035,0.01216301,96680.0,96679.0,0.005]
[1738781327686,0.01216301,96680.0,96679.0,0.240552]
[1738781327864,0.01216301,96680.0,96679.0,0.005]
[1738781328066,0.005,96686.0,96685.0,0.005]
[1738781328505,0.005,96687.0,96686.0,0.005]
[1738781329263,0.155149,96681.0,96674.0,0.005]
[1738781329470,0.005,96677.0,96674.0,0.005]
[1738781329679,0.005,96675.0,96674.0,0.005]
[1738781330250,0.005,96675.0,96672.0,0.005]
[1738781330511,0.005,96674.0,96673.0,0.005]
[1738781330713,0.005,96673.0,96672.0,0.0989]
[1738781331638,0.005,96673.0,96672.0,0.0939]
[1738781331834,0.005,96673.0,96672.0,0.0989]
[1738781332284,0.27350826,96673.0,96672.0,0.0939]
[1738781333252,0.26266565,96673.0,96672.0,0.0939]
[1738781335468,0.10750365,96673.0,96672.0,0.0939]
[1738781337114,0.26266565,96673.0,96672.0,0.0939]
[1738781337265,0.26266565,96673.0,96672.0,0.0940069]
[1738781337467,0.34446565,96673.0,96672.0,0.0940069]
[1738781337687,0.4213417,96673.0,96672.0,0.0940069]
[1738781338088,1.9213417,96673.0,96672.0,0.0940069]
[1738781338566,0.4213417,96673.0,96672.0,0.0940069]
[1738781338984,1.9213417,96673.0,96672.0,0.0940069]
[1738781341450,0.4213417,96673.0,96672.0,0.0940069]
[1738781342571,0.356838,96694.0,96672.0,0.0940069]
[1738781342572,0.005,96677.0,96672.0,0.0990069]